[Event "Titled Tuesday Blitz April 25 Early 2023"]
[White "Goldin, Roman"]
[Black "Ronka, Erik"]
[WhiteFideId "2803860"]
[BlackFideId "505080"]
[WhiteElo "2312"]
[BlackElo "2264"]
[Result "1-0"]
[Round "02"]
[TimeControl "180+2"]
[Date "2023.04.25"]
[WhiteClock "0:00:56"]
[BlackClock "0:00:05"]

1. e4 {[%clk 0:02:59]}  a6 {[%clk 0:02:57]} 2. d4 {[%clk 0:02:58]}  c5 {[%clk 0:02:58]} 3. d5 {[%clk 0:02:57]}  e5 {[%clk 0:02:58]} 4. a4 {[%clk 0:02:57]}  d6 {[%clk 0:02:58]} 5. Nc3 {[%clk 0:02:57]}  Be7 {[%clk 0:02:59]} 6. Be2 {[%clk 0:02:56]}  Bg5 {[%clk 0:02:56]} 7. Bxg5 {[%clk 0:02:47]}  Qxg5 {[%clk 0:02:57]} 8. Nf3 {[%clk 0:02:47]}  Qe7 {[%clk 0:02:56]} 9. O-O {[%clk 0:02:46]}  Nf6 {[%clk 0:02:51]} 10. Nd2 {[%clk 0:02:46]}  O-O {[%clk 0:02:51]} 11. Nc4 {[%clk 0:02:45]}  Nbd7 {[%clk 0:02:51]} 12. a5 {[%clk 0:02:45]}  Ne8 {[%clk 0:02:41]} 13. Bg4 {[%clk 0:02:40]}  g6 {[%clk 0:02:31]} 14. g3 {[%clk 0:02:38]}  Ng7 {[%clk 0:02:30]} 15. h4 {[%clk 0:02:23]}  f5 {[%clk 0:02:28]} 16. exf5 {[%clk 0:02:20]}  gxf5 {[%clk 0:02:27]} 17. Bh3 {[%clk 0:02:20]}  Rb8 {[%clk 0:02:06]} 18. Qd2 {[%clk 0:02:16]}  b5 {[%clk 0:02:04]} 19. axb6 {[%clk 0:02:16]}  Nxb6 {[%clk 0:02:05]} 20. Na5 {[%clk 0:02:11]}  f4 {[%clk 0:01:39]} 21. Nc6 {[%clk 0:02:10]}  Qf7 {[%clk 0:01:20]} 22. Bxc8 {[%clk 0:01:41]}  Rbxc8 {[%clk 0:01:21]} 23. Ne4 {[%clk 0:01:37]}  Qd7 {[%clk 0:00:58]} 24. Rxa6 {[%clk 0:01:30]}  Qh3 {[%clk 0:00:22]} 25. Ng5 {[%clk 0:01:26]}  Qf5 {[%clk 0:00:10]} 26. Rxb6 {[%clk 0:01:19]}  Qf6 {[%clk 0:00:07]} 27. Qd3 {[%clk 0:01:11]}  Nf5 {[%clk 0:00:07]} 28. Qxf5 {[%clk 0:01:09]}  Qxf5 {[%clk 0:00:06]} 29. Ne7+ {[%clk 0:01:09]}  Kg7 {[%clk 0:00:07]} 30. Nxf5+ {[%clk 0:01:09]}  Rxf5 {[%clk 0:00:08]} 31. Rxd6 {[%clk 0:01:05]}  Rb8 {[%clk 0:00:06]} 32. b3 {[%clk 0:01:04]}  c4 {[%clk 0:00:05]} 33. bxc4 {[%clk 0:01:04]}  Rb2 {[%clk 0:00:06]} 34. g4 {[%clk 0:00:58]}  Rf6 {[%clk 0:00:04]} 35. Rxf6 {[%clk 0:00:57]}  Kxf6 {[%clk 0:00:05]} 36. Ne4+ {[%clk 0:00:57]}  Ke7 {[%clk 0:00:05]} 37. Rc1 {[%clk 0:00:57]}  f3 {[%clk 0:00:05]} 38. Kh2 {[%clk 0:00:56]} 1-0


[Site "https://www.chess.com"]

[Event "Titled Tuesday Blitz April 25 Early 2023"]
[White "GregLeBarbare"]
[Black "Sharapov, Evgeny"]
[BlackFideId "14103133"]
[WhiteElo "2165"]
[BlackElo "2367"]
[Result "1/2-1/2"]
[Round "02"]
[TimeControl "180+2"]
[Date "2023.04.25"]
[WhiteClock "0:00:17"]
[BlackClock "0:00:18"]

1. d4 {[%clk 0:03:00]}  Nf6 {[%clk 0:02:59]} 2. Nf3 {[%clk 0:02:59]}  c5 {[%clk 0:02:59]} 3. c3 {[%clk 0:02:56]}  e6 {[%clk 0:02:58]} 4. Bf4 {[%clk 0:02:55]}  Nc6 {[%clk 0:02:57]} 5. e3 {[%clk 0:02:55]}  d5 {[%clk 0:02:57]} 6. Nbd2 {[%clk 0:02:55]}  Bd6 {[%clk 0:02:57]} 7. Bg3 {[%clk 0:02:49]}  O-O {[%clk 0:02:56]} 8. Bd3 {[%clk 0:02:47]}  b6 {[%clk 0:02:57]} 9. Ne5 {[%clk 0:02:45]}  Bb7 {[%clk 0:02:55]} 10. Qe2 {[%clk 0:02:36]}  Qc7 {[%clk 0:02:48]} 11. f4 {[%clk 0:02:35]}  Nd7 {[%clk 0:02:48]} 12. Qh5 {[%clk 0:02:23]}  f5 {[%clk 0:02:45]} 13. Bh4 {[%clk 0:02:08]}  Nf6 {[%clk 0:02:34]} 14. Bxf6 {[%clk 0:02:08]}  Rxf6 {[%clk 0:02:33]} 15. Qe2 {[%clk 0:02:01]}  Bxe5 {[%clk 0:02:25]} 16. fxe5 {[%clk 0:01:49]}  Rf7 {[%clk 0:02:25]} 17. Nf3 {[%clk 0:01:46]}  h6 {[%clk 0:02:19]} 18. O-O {[%clk 0:01:42]}  a5 {[%clk 0:02:19]} 19. Kh1 {[%clk 0:01:42]}  Qc8 {[%clk 0:02:18]} 20. a4 {[%clk 0:01:34]}  Ba6 {[%clk 0:02:18]} 21. Bb5 {[%clk 0:01:35]}  Bxb5 {[%clk 0:02:18]} 22. Qxb5 {[%clk 0:01:35]}  cxd4 {[%clk 0:02:04]} 23. exd4 {[%clk 0:01:33]}  Qc7 {[%clk 0:01:59]} 24. Ne1 {[%clk 0:01:13]}  Na7 {[%clk 0:01:54]} 25. Qe2 {[%clk 0:01:09]}  Nc8 {[%clk 0:01:53]} 26. Nc2 {[%clk 0:01:09]}  Ne7 {[%clk 0:01:51]} 27. Na3 {[%clk 0:01:09]}  Nc8 {[%clk 0:01:38]} 28. Nb5 {[%clk 0:01:09]}  Qc6 {[%clk 0:01:30]} 29. Rf3 {[%clk 0:01:06]}  Rb8 {[%clk 0:01:25]} 30. Raf1 {[%clk 0:01:05]}  Rbb7 {[%clk 0:01:25]} 31. g4 {[%clk 0:00:56]}  fxg4 {[%clk 0:01:23]} 32. Rxf7 {[%clk 0:00:56]}  Rxf7 {[%clk 0:01:23]} 33. Rxf7 {[%clk 0:00:57]}  Kxf7 {[%clk 0:01:23]} 34. Qxg4 {[%clk 0:00:58]}  Kg8 {[%clk 0:01:13]} 35. Nd6 {[%clk 0:00:47]}  Qd7 {[%clk 0:00:59]} 36. Nb5 {[%clk 0:00:42]}  Ne7 {[%clk 0:00:55]} 37. Nd6 {[%clk 0:00:41]}  Nc8 {[%clk 0:00:49]} 38. Nb5 {[%clk 0:00:40]}  Qf7 {[%clk 0:00:48]} 39. Kg2 {[%clk 0:00:40]}  g6 {[%clk 0:00:42]} 40. h4 {[%clk 0:00:39]}  Qf5 {[%clk 0:00:42]} 41. Qxf5 {[%clk 0:00:36]}  gxf5 {[%clk 0:00:41]} 42. Kg3 {[%clk 0:00:25]}  Kf7 {[%clk 0:00:41]} 43. b3 {[%clk 0:00:20]}  Ke8 {[%clk 0:00:36]} 44. c4 {[%clk 0:00:19]}  dxc4 {[%clk 0:00:35]} 45. bxc4 {[%clk 0:00:20]}  Kd7 {[%clk 0:00:35]} 46. Kf4 {[%clk 0:00:20]}  Ne7 {[%clk 0:00:33]} 47. d5 {[%clk 0:00:18]}  exd5 {[%clk 0:00:33]} 48. cxd5 {[%clk 0:00:19]}  Nxd5+ {[%clk 0:00:34]} 49. Kxf5 {[%clk 0:00:20]}  Ne3+ {[%clk 0:00:29]} 50. Kg6 {[%clk 0:00:20]}  Ke6 {[%clk 0:00:28]} 51. Kxh6 {[%clk 0:00:20]}  Kxe5 {[%clk 0:00:29]} 52. Kg5 {[%clk 0:00:20]}  Ke6 {[%clk 0:00:24]} 53. Kg6 {[%clk 0:00:19]}  Nd5 {[%clk 0:00:21]} 54. h5 {[%clk 0:00:18]}  Nf4+ {[%clk 0:00:21]} 55. Kg5 {[%clk 0:00:18]}  Nh3+ {[%clk 0:00:21]} 56. Kg6 {[%clk 0:00:18]}  Nf4+ {[%clk 0:00:21]} 57. Kg5 {[%clk 0:00:19]}  Nh3+ {[%clk 0:00:21]} 58. Kg4 {[%clk 0:00:20]}  Nf2+ {[%clk 0:00:21]} 59. Kf4 {[%clk 0:00:19]}  Kf7 {[%clk 0:00:20]} 60. Ke5 {[%clk 0:00:18]}  Nd3+ {[%clk 0:00:19]} 61. Kd6 {[%clk 0:00:17]}  Nc5 {[%clk 0:00:18]} 62. Nc3 {[%clk 0:00:17]}  Kg7 {[%clk 0:00:17]} 63. Kc6 {[%clk 0:00:18]}  Nxa4 {[%clk 0:00:17]} 64. Nxa4 {[%clk 0:00:16]}  Kh6 {[%clk 0:00:17]} 65. Kxb6 {[%clk 0:00:16]}  Kxh5 {[%clk 0:00:18]} 66. Kxa5 {[%clk 0:00:17]} 1/2-1/2


[Site "https://www.chess.com"]

[Event "Titled Tuesday Blitz April 25 Early 2023"]
[White "Eljanov, Pavel"]
[Black "Semenova, Alina"]
[WhiteFideId "14102951"]
[BlackFideId "24113875"]
[WhiteElo "2598"]
[BlackElo "1833"]
[Result "1-0"]
[Round "02"]
[TimeControl "180+2"]
[Date "2023.04.25"]
[WhiteClock "0:01:34"]
[BlackClock "0:01:22"]

1. e4 {[%clk 0:03:00]}  e6 {[%clk 0:02:59]} 2. d4 {[%clk 0:02:58]}  d5 {[%clk 0:02:59]} 3. e5 {[%clk 0:02:59]}  c5 {[%clk 0:02:59]} 4. c3 {[%clk 0:02:59]}  Qb6 {[%clk 0:02:59]} 5. Nf3 {[%clk 0:02:59]}  Nc6 {[%clk 0:02:55]} 6. a3 {[%clk 0:02:58]}  Bd7 {[%clk 0:02:53]} 7. b4 {[%clk 0:02:57]}  c4 {[%clk 0:02:49]} 8. a4 {[%clk 0:02:57]}  a5 {[%clk 0:02:49]} 9. b5 {[%clk 0:02:56]}  Nce7 {[%clk 0:02:47]} 10. Be2 {[%clk 0:02:53]}  O-O-O {[%clk 0:02:46]} 11. O-O {[%clk 0:02:47]}  Nh6 {[%clk 0:02:46]} 12. Ba3 {[%clk 0:02:39]}  Nef5 {[%clk 0:02:39]} 13. h3 {[%clk 0:02:39]}  Bxa3 {[%clk 0:02:37]} 14. Nxa3 {[%clk 0:02:40]}  f6 {[%clk 0:02:36]} 15. Qd2 {[%clk 0:02:22]}  Nf7 {[%clk 0:02:27]} 16. Rfe1 {[%clk 0:02:17]}  fxe5 {[%clk 0:02:26]} 17. dxe5 {[%clk 0:02:16]}  h6 {[%clk 0:02:24]} 18. Nc2 {[%clk 0:02:12]}  g5 {[%clk 0:02:24]} 19. Ncd4 {[%clk 0:02:13]}  Nxd4 {[%clk 0:02:18]} 20. cxd4 {[%clk 0:01:56]}  Kb8 {[%clk 0:02:15]} 21. Ra3 {[%clk 0:01:50]}  Rhg8 {[%clk 0:02:12]} 22. Nh2 {[%clk 0:01:51]}  Nh8 {[%clk 0:02:09]} 23. Ng4 {[%clk 0:01:47]}  Rg6 {[%clk 0:01:44]} 24. Rf3 {[%clk 0:01:42]}  h5 {[%clk 0:01:42]} 25. Nf6 {[%clk 0:01:42]}  g4 {[%clk 0:01:42]} 26. hxg4 {[%clk 0:01:42]}  hxg4 {[%clk 0:01:42]} 27. Rg3 {[%clk 0:01:41]}  Nf7 {[%clk 0:01:39]} 28. Rxg4 {[%clk 0:01:41]}  Rxg4 {[%clk 0:01:39]} 29. Bxg4 {[%clk 0:01:41]}  Bc8 {[%clk 0:01:33]} 30. Bh5 {[%clk 0:01:38]}  Qc7 {[%clk 0:01:26]} 31. Bxf7 {[%clk 0:01:36]}  Qxf7 {[%clk 0:01:25]} 32. Qxa5 {[%clk 0:01:35]}  b6 {[%clk 0:01:22]} 33. Qxb6+ {[%clk 0:01:35]}  Qb7 {[%clk 0:01:22]} 34. Qxd8 {[%clk 0:01:34]} 1-0


[Site "https://www.chess.com"]

[Event "Titled Tuesday Blitz April 25 Early 2023"]
[White "Grigoriants, Sergey"]
[Black "Andrews, Todd"]
[WhiteFideId "4130804"]
[BlackFideId "2012456"]
[WhiteElo "2502"]
[BlackElo "2404"]
[Result "1-0"]
[Round "02"]
[TimeControl "180+2"]
[Date "2023.04.25"]
[WhiteClock "0:00:43"]
[BlackClock "0:00:29"]

1. d4 {[%clk 0:02:55]}  Nf6 {[%clk 0:02:59]} 2. c4 {[%clk 0:02:55]}  c5 {[%clk 0:02:59]} 3. d5 {[%clk 0:02:54]}  b5 {[%clk 0:02:59]} 4. Qc2 {[%clk 0:02:55]}  bxc4 {[%clk 0:02:54]} 5. e4 {[%clk 0:02:55]}  e6 {[%clk 0:02:54]} 6. Bxc4 {[%clk 0:02:54]}  exd5 {[%clk 0:02:54]} 7. exd5 {[%clk 0:02:55]}  d6 {[%clk 0:02:55]} 8. Nf3 {[%clk 0:02:53]}  Be7 {[%clk 0:02:56]} 9. O-O {[%clk 0:02:53]}  O-O {[%clk 0:02:56]} 10. Nc3 {[%clk 0:02:52]}  Re8 {[%clk 0:02:56]} 11. Bf4 {[%clk 0:02:50]}  Bg4 {[%clk 0:02:50]} 12. Nd2 {[%clk 0:02:46]}  Nbd7 {[%clk 0:02:44]} 13. Rfe1 {[%clk 0:02:43]}  Nb6 {[%clk 0:02:33]} 14. h3 {[%clk 0:02:25]}  Bh5 {[%clk 0:02:31]} 15. Bb5 {[%clk 0:02:24]}  Nfxd5 {[%clk 0:02:10]} 16. Nxd5 {[%clk 0:02:19]}  Nxd5 {[%clk 0:02:11]} 17. Bxe8 {[%clk 0:02:18]}  Nxf4 {[%clk 0:02:11]} 18. Bc6 {[%clk 0:01:54]}  Rb8 {[%clk 0:01:52]} 19. Qe4 {[%clk 0:01:49]}  Ne6 {[%clk 0:01:39]} 20. Bd5 {[%clk 0:01:49]}  Bf6 {[%clk 0:01:18]} 21. Nc4 {[%clk 0:01:29]}  Bg6 {[%clk 0:01:10]} 22. Qg4 {[%clk 0:01:24]}  Nd4 {[%clk 0:01:02]} 23. Rad1 {[%clk 0:01:11]}  Bf5 {[%clk 0:00:52]} 24. Qf4 {[%clk 0:01:05]}  Bc2 {[%clk 0:00:37]} 25. Nxd6 {[%clk 0:00:58]}  Bxd1 {[%clk 0:00:30]} 26. Nxf7 {[%clk 0:00:43]}  Qxd5 {[%clk 0:00:29]} 27. Qxb8+ {[%clk 0:00:43]}  Kxf7 {[%clk 0:00:29]} 28. Qe8# {[%clk 0:00:43]} 1-0


[Site "https://www.chess.com"]

[Event "Titled Tuesday Blitz April 25 Early 2023"]
[White "Koutsin, Sergey"]
[Black "demon64fields"]
[WhiteFideId "14101483"]
[WhiteElo "2381"]
[BlackElo "2876"]
[Result "0-1"]
[Round "02"]
[TimeControl "180+2"]
[Date "2023.04.25"]
[WhiteClock "0:00:02"]
[BlackClock "0:02:15"]

1. d4 {[%clk 0:02:59]}  g6 {[%clk 0:02:59]} 2. c4 {[%clk 0:02:59]}  Bg7 {[%clk 0:03:00]} 3. Nf3 {[%clk 0:03:00]}  d6 {[%clk 0:03:00]} 4. Nc3 {[%clk 0:03:00]}  e5 {[%clk 0:03:01]} 5. dxe5 {[%clk 0:03:00]}  dxe5 {[%clk 0:03:01]} 6. Qxd8+ {[%clk 0:03:00]}  Kxd8 {[%clk 0:03:02]} 7. h3 {[%clk 0:02:59]}  c6 {[%clk 0:03:02]} 8. g4 {[%clk 0:02:59]}  f6 {[%clk 0:03:02]} 9. b3 {[%clk 0:02:49]}  Be6 {[%clk 0:03:02]} 10. Ba3 {[%clk 0:02:48]}  Nd7 {[%clk 0:03:01]} 11. O-O-O {[%clk 0:02:48]}  h5 {[%clk 0:03:01]} 12. Rg1 {[%clk 0:02:47]}  hxg4 {[%clk 0:02:58]} 13. hxg4 {[%clk 0:02:47]}  g5 {[%clk 0:02:40]} 14. Ne4 {[%clk 0:02:35]}  Kc7 {[%clk 0:02:27]} 15. Bd6+ {[%clk 0:02:33]}  Kc8 {[%clk 0:02:27]} 16. e3 {[%clk 0:02:33]}  Nh6 {[%clk 0:02:27]} 17. Nh2 {[%clk 0:01:56]}  Nf7 {[%clk 0:02:27]} 18. Nf3 {[%clk 0:01:55]}  Nxd6 {[%clk 0:02:27]} 19. Nxd6+ {[%clk 0:01:55]}  Kc7 {[%clk 0:02:27]} 20. Ne4 {[%clk 0:01:50]}  Rad8 {[%clk 0:02:25]} 21. Bd3 {[%clk 0:01:49]}  a5 {[%clk 0:02:23]} 22. Bc2 {[%clk 0:01:43]}  Bf8 {[%clk 0:02:24]} 23. Kb2 {[%clk 0:01:32]}  Be7 {[%clk 0:02:24]} 24. Rd2 {[%clk 0:01:02]}  Nc5 {[%clk 0:02:23]} 25. Rxd8 {[%clk 0:00:52]}  Kxd8 {[%clk 0:02:24]} 26. Nxc5 {[%clk 0:00:40]}  Bxc5 {[%clk 0:02:25]} 27. Bf5 {[%clk 0:00:31]}  Bf7 {[%clk 0:02:24]} 28. Rd1+ {[%clk 0:00:29]}  Ke8 {[%clk 0:02:24]} 29. Nd2 {[%clk 0:00:30]}  Rh2 {[%clk 0:02:21]} 30. Ne4 {[%clk 0:00:28]}  Bxe3 {[%clk 0:02:21]} 31. Nxf6+ {[%clk 0:00:26]}  Ke7 {[%clk 0:02:20]} 32. Ne4 {[%clk 0:00:26]}  Bxf2 {[%clk 0:02:20]} 33. Rd7+ {[%clk 0:00:23]}  Kf8 {[%clk 0:02:20]} 34. Ka3 {[%clk 0:00:19]}  b5 {[%clk 0:02:17]} 35. cxb5 {[%clk 0:00:07]}  cxb5 {[%clk 0:02:17]} 36. Rc7 {[%clk 0:00:02]}  Be8 {[%clk 0:02:15]} 0-1


[Site "https://www.chess.com"]

[Event "Titled Tuesday Blitz April 25 Early 2023"]
[White "Topalov, Aleksandar"]
[Black "Costachi, Mihnea"]
[WhiteFideId "925659"]
[BlackFideId "1217518"]
[WhiteElo "2151"]
[BlackElo "2456"]
[Result "0-1"]
[Round "02"]
[TimeControl "180+2"]
[Date "2023.04.25"]
[WhiteClock "0:00:50"]
[BlackClock "0:01:28"]

1. b3 {[%clk 0:03:00]}  a5 {[%clk 0:02:59]} 2. a3 {[%clk 0:02:59]}  Nf6 {[%clk 0:02:59]} 3. Bb2 {[%clk 0:02:59]}  g6 {[%clk 0:03:00]} 4. Bxf6 {[%clk 0:02:59]}  exf6 {[%clk 0:03:00]} 5. c4 {[%clk 0:02:59]}  c6 {[%clk 0:02:57]} 6. Nc3 {[%clk 0:02:57]}  d5 {[%clk 0:02:58]} 7. cxd5 {[%clk 0:02:57]}  cxd5 {[%clk 0:02:58]} 8. d4 {[%clk 0:02:57]}  Nc6 {[%clk 0:02:58]} 9. e3 {[%clk 0:02:57]}  Be6 {[%clk 0:02:53]} 10. Nge2 {[%clk 0:02:57]}  Bd6 {[%clk 0:02:53]} 11. g3 {[%clk 0:02:58]}  O-O {[%clk 0:02:53]} 12. Bg2 {[%clk 0:02:58]}  Ne7 {[%clk 0:02:54]} 13. O-O {[%clk 0:02:58]}  Qd7 {[%clk 0:02:55]} 14. Qd3 {[%clk 0:02:52]}  Rfc8 {[%clk 0:02:54]} 15. a4 {[%clk 0:02:47]}  Bb4 {[%clk 0:02:52]} 16. Nb5 {[%clk 0:02:46]}  Bf5 {[%clk 0:02:50]} 17. e4 {[%clk 0:02:42]}  dxe4 {[%clk 0:02:51]} 18. Bxe4 {[%clk 0:02:42]}  Bxe4 {[%clk 0:02:43]} 19. Qxe4 {[%clk 0:02:42]}  Nd5 {[%clk 0:02:43]} 20. Nf4 {[%clk 0:02:41]}  Nxf4 {[%clk 0:02:39]} 21. Qxf4 {[%clk 0:02:41]}  Kg7 {[%clk 0:02:33]} 22. Rac1 {[%clk 0:02:35]}  h5 {[%clk 0:02:34]} 23. Rxc8 {[%clk 0:02:29]}  Rxc8 {[%clk 0:02:34]} 24. Rc1 {[%clk 0:02:29]}  Rc6 {[%clk 0:02:29]} 25. h4 {[%clk 0:02:14]}  Qd5 {[%clk 0:02:26]} 26. Rd1 {[%clk 0:02:00]}  Rc2 {[%clk 0:02:16]} 27. Qe3 {[%clk 0:01:53]}  Rb2 {[%clk 0:02:07]} 28. Nc7 {[%clk 0:01:45]}  Qc6 {[%clk 0:01:55]} 29. Nb5 {[%clk 0:01:41]}  Qc2 {[%clk 0:01:54]} 30. Rc1 {[%clk 0:01:30]}  Qxb3 {[%clk 0:01:48]} 31. Qxb3 {[%clk 0:01:29]}  Rxb3 {[%clk 0:01:49]} 32. Rd1 {[%clk 0:01:27]}  Kf8 {[%clk 0:01:47]} 33. d5 {[%clk 0:01:28]}  Ke7 {[%clk 0:01:48]} 34. d6+ {[%clk 0:01:23]}  Kd7 {[%clk 0:01:48]} 35. Rc1 {[%clk 0:01:24]}  Bxd6 {[%clk 0:01:43]} 36. Rd1 {[%clk 0:01:23]}  Rxb5 {[%clk 0:01:43]} 37. axb5 {[%clk 0:01:22]}  a4 {[%clk 0:01:44]} 38. Kf1 {[%clk 0:01:20]}  a3 {[%clk 0:01:45]} 39. Ke2 {[%clk 0:01:19]}  Kc7 {[%clk 0:01:46]} 40. Kd3 {[%clk 0:01:19]}  Bc5 {[%clk 0:01:46]} 41. f3 {[%clk 0:01:13]}  Bf2 {[%clk 0:01:42]} 42. g4 {[%clk 0:01:13]}  Kb6 {[%clk 0:01:39]} 43. Kc4 {[%clk 0:01:12]}  Bxh4 {[%clk 0:01:36]} 44. gxh5 {[%clk 0:01:12]}  gxh5 {[%clk 0:01:36]} 45. Rh1 {[%clk 0:01:08]}  Bg3 {[%clk 0:01:28]} 46. Rxh5 {[%clk 0:00:53]}  a2 {[%clk 0:01:27]} 47. Rh1 {[%clk 0:00:50]}  Be5 {[%clk 0:01:28]} 0-1


[Site "https://www.chess.com"]

[Event "Titled Tuesday Blitz April 25 Early 2023"]
[White "a-z30"]
[Black "Albornoz Cabrera, Carlos Daniel"]
[BlackFideId "3518736"]
[WhiteElo "2398"]
[BlackElo "2516"]
[Result "0-1"]
[Round "02"]
[TimeControl "180+2"]
[Date "2023.04.25"]
[WhiteClock "0:00:03"]
[BlackClock "0:00:54"]

1. d3 {[%clk 0:03:00]}  Nf6 {[%clk 0:02:59]} 2. Nf3 {[%clk 0:03:01]}  d5 {[%clk 0:02:59]} 3. g3 {[%clk 0:03:02]}  g6 {[%clk 0:02:59]} 4. Bg2 {[%clk 0:03:03]}  Bg7 {[%clk 0:02:59]} 5. O-O {[%clk 0:03:03]}  O-O {[%clk 0:02:59]} 6. c4 {[%clk 0:03:04]}  c5 {[%clk 0:02:59]} 7. Nc3 {[%clk 0:03:02]}  d4 {[%clk 0:02:59]} 8. Na4 {[%clk 0:03:02]}  Nfd7 {[%clk 0:02:59]} 9. b4 {[%clk 0:02:44]}  cxb4 {[%clk 0:02:57]} 10. a3 {[%clk 0:02:44]}  b3 {[%clk 0:02:57]} 11. Qxb3 {[%clk 0:02:27]}  Nc6 {[%clk 0:02:49]} 12. Nd2 {[%clk 0:01:56]}  Rb8 {[%clk 0:02:40]} 13. Qc2 {[%clk 0:01:48]}  Qc7 {[%clk 0:02:25]} 14. c5 {[%clk 0:01:36]}  Nde5 {[%clk 0:02:15]} 15. Nb3 {[%clk 0:01:22]}  Be6 {[%clk 0:02:11]} 16. Bf4 {[%clk 0:01:21]}  Rfd8 {[%clk 0:02:06]} 17. Rfc1 {[%clk 0:01:19]}  h6 {[%clk 0:02:04]} 18. h4 {[%clk 0:01:02]}  Rbc8 {[%clk 0:02:03]} 19. Rab1 {[%clk 0:01:01]}  Qd7 {[%clk 0:02:03]} 20. Qd2 {[%clk 0:00:51]}  Kh7 {[%clk 0:02:02]} 21. Na5 {[%clk 0:00:50]}  Nxa5 {[%clk 0:01:41]} 22. Qxa5 {[%clk 0:00:49]}  Nc6 {[%clk 0:01:41]} 23. Qb5 {[%clk 0:00:45]}  Bd5 {[%clk 0:01:39]} 24. Bxd5 {[%clk 0:00:41]}  Qxd5 {[%clk 0:01:39]} 25. Qxb7 {[%clk 0:00:39]}  g5 {[%clk 0:01:34]} 26. hxg5 {[%clk 0:00:36]}  hxg5 {[%clk 0:01:34]} 27. e4 {[%clk 0:00:20]}  dxe3 {[%clk 0:01:32]} 28. Bxe3 {[%clk 0:00:19]}  Rb8 {[%clk 0:01:28]} 29. Qa6 {[%clk 0:00:18]}  Ne5 {[%clk 0:01:28]} 30. Rxb8 {[%clk 0:00:07]}  Rxb8 {[%clk 0:01:28]} 31. c6 {[%clk 0:00:08]}  Nf3+ {[%clk 0:01:11]} 32. Kf1 {[%clk 0:00:08]}  Nd4 {[%clk 0:01:12]} 33. Bxd4 {[%clk 0:00:07]}  Qh1+ {[%clk 0:01:11]} 34. Ke2 {[%clk 0:00:07]}  Qxc1 {[%clk 0:01:10]} 35. Bxg7 {[%clk 0:00:07]}  Kxg7 {[%clk 0:01:11]} 36. Qc4 {[%clk 0:00:06]}  Qxc4 {[%clk 0:01:08]} 37. dxc4 {[%clk 0:00:06]}  Rc8 {[%clk 0:01:08]} 38. Kd3 {[%clk 0:00:05]}  Rxc6 {[%clk 0:01:09]} 39. Kd4 {[%clk 0:00:06]}  Ra6 {[%clk 0:01:00]} 40. Nc3 {[%clk 0:00:06]}  Rxa3 {[%clk 0:01:00]} 41. c5 {[%clk 0:00:06]}  Kf8 {[%clk 0:00:57]} 42. c6 {[%clk 0:00:06]}  Ke8 {[%clk 0:00:57]} 43. Nb5 {[%clk 0:00:06]}  Ra1 {[%clk 0:00:54]} 44. f4 {[%clk 0:00:02]}  gxf4 {[%clk 0:00:54]} 45. gxf4 {[%clk 0:00:03]}  Kd8 {[%clk 0:00:54]} 46. Kd5 {[%clk 0:00:03]}  a6 {[%clk 0:00:54]} 47. Nd4 {[%clk 0:00:03]}  Kc7 {[%clk 0:00:54]} 48. Kc5 {[%clk 0:00:03]}  Rc1+ {[%clk 0:00:54]} 0-1


[Site "https://www.chess.com"]

[Event "Titled Tuesday Blitz April 25 Early 2023"]
[White "Orujov2008"]
[Black "Halkias, Stelios"]
[BlackFideId "4201809"]
[WhiteElo "2396"]
[BlackElo "2451"]
[Result "1/2-1/2"]
[Round "02"]
[TimeControl "180+2"]
[Date "2023.04.25"]
[WhiteClock "0:00:03"]
[BlackClock "0:00:14"]

1. e4 {[%clk 0:03:00]}  e5 {[%clk 0:02:55]} 2. Nf3 {[%clk 0:03:00]}  Nc6 {[%clk 0:02:55]} 3. Bb5 {[%clk 0:03:00]}  a6 {[%clk 0:02:55]} 4. Ba4 {[%clk 0:03:01]}  Nf6 {[%clk 0:02:55]} 5. O-O {[%clk 0:03:01]}  Be7 {[%clk 0:02:56]} 6. Qe2 {[%clk 0:03:00]}  b5 {[%clk 0:02:54]} 7. Bb3 {[%clk 0:03:00]}  O-O {[%clk 0:02:54]} 8. c3 {[%clk 0:03:00]}  Bb7 {[%clk 0:02:51]} 9. Rd1 {[%clk 0:02:58]}  d5 {[%clk 0:02:41]} 10. exd5 {[%clk 0:02:53]}  Na5 {[%clk 0:02:41]} 11. Bc2 {[%clk 0:02:50]}  Re8 {[%clk 0:02:35]} 12. d3 {[%clk 0:02:14]}  Nxd5 {[%clk 0:02:27]} 13. Be3 {[%clk 0:02:14]}  Nc6 {[%clk 0:02:20]} 14. Nbd2 {[%clk 0:02:13]}  f5 {[%clk 0:02:14]} 15. Nf1 {[%clk 0:02:00]}  Kh8 {[%clk 0:02:12]} 16. c4 {[%clk 0:01:54]}  Ndb4 {[%clk 0:01:48]} 17. d4 {[%clk 0:01:49]}  e4 {[%clk 0:01:43]} 18. Ne5 {[%clk 0:01:47]}  Nxe5 {[%clk 0:01:35]} 19. dxe5 {[%clk 0:01:47]}  Qc8 {[%clk 0:01:36]} 20. Ng3 {[%clk 0:01:18]}  c5 {[%clk 0:01:33]} 21. a3 {[%clk 0:00:39]}  Nxc2 {[%clk 0:01:24]} 22. Qxc2 {[%clk 0:00:40]}  Qe6 {[%clk 0:01:24]} 23. Bf4 {[%clk 0:00:35]}  g5 {[%clk 0:01:18]} 24. Bd2 {[%clk 0:00:33]}  Rad8 {[%clk 0:01:13]} 25. Bc3 {[%clk 0:00:30]}  Kg8 {[%clk 0:01:13]} 26. Nf1 {[%clk 0:00:22]}  f4 {[%clk 0:01:12]} 27. Nd2 {[%clk 0:00:19]}  Qg6 {[%clk 0:01:10]} 28. Re1 {[%clk 0:00:16]}  Rd3 {[%clk 0:01:10]} 29. f3 {[%clk 0:00:06]}  exf3 {[%clk 0:01:03]} 30. Nxf3 {[%clk 0:00:04]}  Bxf3 {[%clk 0:01:02]} 31. gxf3 {[%clk 0:00:05]}  Rxf3 {[%clk 0:00:57]} 32. Qxg6+ {[%clk 0:00:05]}  hxg6 {[%clk 0:00:57]} 33. Rad1 {[%clk 0:00:06]}  b4 {[%clk 0:00:52]} 34. axb4 {[%clk 0:00:06]}  cxb4 {[%clk 0:00:52]} 35. Bd4 {[%clk 0:00:06]}  Rd8 {[%clk 0:00:49]} 36. Bb6 {[%clk 0:00:03]}  Rxd1 {[%clk 0:00:47]} 37. Rxd1 {[%clk 0:00:04]}  Kf7 {[%clk 0:00:48]} 38. c5 {[%clk 0:00:02]}  Rh3 {[%clk 0:00:19]} 39. c6 {[%clk 0:00:03]}  Rh8 {[%clk 0:00:19]} 40. c7 {[%clk 0:00:03]}  Ke6 {[%clk 0:00:17]} 41. Rd8 {[%clk 0:00:03]}  Bxd8 {[%clk 0:00:16]} 42. cxd8=Q {[%clk 0:00:04]}  Rxd8 {[%clk 0:00:17]} 43. Bxd8 {[%clk 0:00:05]}  Kxe5 {[%clk 0:00:16]} 44. Bxg5 {[%clk 0:00:05]}  b3 {[%clk 0:00:16]} 45. Kf2 {[%clk 0:00:05]}  Kf5 {[%clk 0:00:17]} 46. Be7 {[%clk 0:00:04]}  g5 {[%clk 0:00:16]} 47. h3 {[%clk 0:00:05]}  a5 {[%clk 0:00:16]} 48. Kf3 {[%clk 0:00:05]}  a4 {[%clk 0:00:16]} 49. Bb4 {[%clk 0:00:04]}  Ke5 {[%clk 0:00:13]} 50. Ba3 {[%clk 0:00:02]}  Kf5 {[%clk 0:00:13]} 51. Bb4 {[%clk 0:00:02]}  Ke5 {[%clk 0:00:13]} 52. Ba3 {[%clk 0:00:03]}  Kf5 {[%clk 0:00:14]} 53. Bb4 {[%clk 0:00:03]} 1/2-1/2


[Site "https://www.chess.com"]